Cogmind - Beta 14 @@@ ROGUE MODE // 2024.12.20 @ 13:27:10 Player: CogMan Result: Self-destructed Performance ------------- Evolutions (1) 500 Regions Visited (2) 400 Robots Destroyed (29) 145 Value Destroyed (468) 468 Prototype IDs (0) 0 Alien Tech Used (0) 0 Bonus (2) 2 TOTAL SCORE: 1515 Bonus ------- High Alert Combat Kills 2 Cogmind --------- Core Integrity 298/400 Matter 259/300 Energy 78/100 System Corruption 0% Temperature Cool (0) Movement Core (250) Ox4 Location -9/Materials Parts ------- > --- POWER (1) -------- (None) > --- PROPULSION (2) --- (None) > --- UTILITY (4) ------ Medium Storage Unit Improved Terrain Scanner Transport Network Coupler > --- WEAPON (2) ------- Assault Rifle > --- INVENTORY (10) --- Ion Engine Light Nuclear Core Aluminum Leg Aluminum Leg Small Storage Unit Huge Storage Unit Visual Processing Unit Signal Interpreter Light Assault Rifle Grenade Launcher Peak State ------------ > --- POWER ------------ Ion Engine > --- PROPULSION ------- Aluminum Leg Aluminum Leg > --- UTILITY ---------- Heat Sink Medium Storage Unit Improved Terrain Scanner Transport Network Coupler > --- WEAPON ----------- Assault Rifle Light Assault Rifle > --- INVENTORY -------- Ion Engine Light Nuclear Core Aluminum Leg Small Storage Unit Huge Storage Unit Visual Processing Unit Signal Interpreter Grenade Launcher [Rating: 12] Favorites ----------- Power Ion Engine Engine Ion Engine Propulsion Aluminum Leg Leg Aluminum Leg Utility Improved Terrain Scanner Device Improved Terrain Scanner Storage Medium Storage Unit Processor Transport Network Coupler Weapon Assault Rifle Ballistic Gun Assault Rifle Launcher Grenade Launcher Build | -11 -10 -9 ------- Run | Yrd Mat Mat Slots Evolved 2 | . . 2 Power . | . . . Propulsion . | . . . Utility 2 | . . 2 Weapon . | . . . Parts Attached 16 | 7 2 7 Power 1 | 1 . . Engine 1 | 1 . . Core . | . . . Reactor . | . . . Propulsion 4 | 2 1 1 Treads . | . . . Leg 4 | 2 1 1 Wheel . | . . . Hover . | . . . Flight . | . . . Utility 5 | 2 1 2 Device 2 | 1 . 1 Storage 2 | 1 1 . Processor 1 | . . 1 Hackware . | . . . Protection . | . . . Artifact . | . . . Weapon 6 | 2 . 4 Energy Gun . | . . . Energy Cannon . | . . . Ballistic Gun 4 | 2 . 2 Ballistic Cannon . | . . . Launcher 2 | . . 2 Special Weapon . | . . . Impact Weapon . | . . . Slashing Weapon . | . . . Piercing Weapon . | . . . Special Melee Weapon . | . . . Unidentified Prototypes . | . . . Parts Lost 5 | . . 5 Power 1 | . . 1 Propulsion 2 | . . 2 Utility 1 | . . 1 Weapon 1 | . . 1 Highest Loss Streak 4 | . . 4 To Critical Strikes . | . . . Average Slot Usage (%) 98 | . 100 96 Engine 11 | . 14 8 Leg 25 | . 28 21 Device 17 | . 14 22 Storage 12 | . 14 11 Processor 4 | . . 11 Ballistic Gun 25 | . 28 20 Peak Build Rating 12 | 9 10 12 Average Rating 9 | 7 9 11 On Entrance 6 | . 9 10 Naked Turns . | . . . Heaviest Build 20 | 14 19 20 Greatest Support 20 | 20 20 20 Greatest Overweight (x) 4 | . . 4 Average Overweight (x) . | . . . Largest Inventory Capacity 10 | 8 10 10 Average Capacity 9 | 7 9 10 Most Carried 10 | 1 8 10 Average Carried 4 | . 5 7 Final Capacity 10 | 8 10 10 Final Carried 10 | 1 8 10 Class Distribution -------------------- 71% | Mutant 28% | Scavenger-Mutant Dominant Class ---------------- Mutant | -10/Materials Scavenger-Mutant | -9/Materials Resources | -11 -10 -9 ----------- Run | Yrd Mat Mat Matter Collected 671 | 353 113 205 Remotely . | . . . Salvage Created 783 | 221 179 383 Parts 63 | 21 10 32 Haulers Intercepted 1 | . 1 . Recyclers Shooed 2 | . 1 1 Parts Field Recycled . | . . . Retrieved Matter . | . . . Parts Self-Destructed . | . . . Prevented . | . . . Kills | -11 -10 -9 ------- Run | Yrd Mat Mat Combat Hostiles Destroyed 15 | . 3 12 Guns 8 | . 3 5 AOE 7 | . . 7 Classes Destroyed 9 | 3 2 4 Worker 2 | 2 . . Tunneler 6 | 6 . . Hauler 1 | . 1 . Recycler 3 | 1 . 2 Mechanic 1 | . . 1 Watcher 1 | . . 1 Swarmer 8 | . . 8 Grunt 6 | . 3 3 Sentry 1 | . . 1 Best Kill Streak 11 | 5 2 11 Combat Bots Only 10 | . 2 10 Max Kills in Single Turn 4 | 1 1 4 Gunslinging . | . . . Exploded 3 | . . 3 Melee . | . . . Uniques/NPCs Destroyed . | . . . Combat | -11 -10 -9 -------- Run | Yrd Mat Mat Hostile Shots Fired 83 | . 15 68 Missed 23 | . 2 21 Damage Taken 757 | . 174 583 Core 130 | . 28 102 Absorbed by Shields . | . . . Core Remaining (%) 94 | 100 88 . Volleys Fired 74 | 31 13 30 Largest 2 | 2 2 2 Hottest 50 | 40 40 50 Shots Fired 148 | 62 26 60 Gun 139 | 62 26 51 Cannon . | . . . Launcher 9 | . . 9 Special . | . . . Kinetic 139 | 62 26 51 Thermal . | . . . Explosive 9 | . . 9 Electromagnetic . | . . . Robot Hit Streak 7 | 7 5 3 Robot Miss Streak 4 | 3 2 4 Penetration Max . | . . . Secondary Targets 2 | . 1 1 Max Gunslinging Chain 1 | . 1 1 Shots Hit Robots 70 | 33 15 22 Core Hits 45 | 12 9 24 Critical Kills . | . . . Critical Parts Destroyed . | . . . Critical Strikes . | . . . Melee Attacks . | . . . Impact . | . . . Slashing . | . . . Piercing . | . . . Sneak Attacks . | . . . Combat Hostiles . | . . . Follow-up Attacks . | . . . Damage Inflicted 1463 | 364 185 914 Guns 906 | 364 185 357 Cannons . | . . . Explosions 557 | . . 557 Melee . | . . . Ramming . | . . . Kinetic 906 | 364 185 357 Thermal 87 | . . 87 Explosive 470 | . . 470 Electromagnetic . | . . . Impact . | . . . Slashing . | . . . Piercing . | . . . Highest Corruption 1 | . 1 . Average Corruption 1 | . 1 . Corruption Purged . | . . . Corruption Blocked . | . . . Effects 1 | . 1 . Data Loss (major) 1 | . 1 . Overload Shots . | . . . Overflow Damage 75 | . . 75 Projectiles . | . . . Explosions 75 | . . 75 Melee . | . . . Knockbacks . | . . . Impact . | . . . Kinetic . | . . . Secondary . | . . . Self-Inflicted Damage 39 | . . 39 Shots 1 | . . 1 Rammed . | . . . Targets Rammed . | . . . Kicked . | . . . Crushed . | . . . Highest Temperature 16 | . 16 1 Average Temperature 8 | . 9 1 Received Heat Transfer 249 | . 93 156 Siege Activations . | . . . Robots Corrupted . | . . . Combat Hostiles . | . . . Parts Fried . | . . . Impact Corruptions . | . . . Robots Melted . | . . . Combat Hostiles . | . . . Parts Melted . | . . . Heat Transferred 50 | . . 50 Parts Sabotaged . | . . . Parts Stolen . | . . . Parts Stripped . | . . . Power Chain Reactions . | . . . Alert | -11 -10 -9 ------- Run | Yrd Mat Mat Peak Influence 456 | 45 127 456 Initial 53 | . 29 53 Average 94 | 21 72 207 Maximum Alert Level 2 | . . 2 Low Security (%) 90 | 100 100 64 Level 1 4 | . . 15 Level 2 5 | . . 19 Level 3 . | . . . Level 4 . | . . . Level 5 . | . . . High Security . | . . . Max Security . | . . . Squads Dispatched 1 | . . 1 Investigation . | . . . Extermination . | . . . Reinforcement 1 | . . 1 Assault . | . . . Garrison . | . . . Intercept . | . . . Searches Triggered . | . . . Construction Impeded 1 | . . 1 Haulers Reinforced . | . . . Active Scanning Responses . | . . . Cargo Convoy Interrupts . | . . . Stealth | -11 -10 -9 --------- Run | Yrd Mat Mat Distress Signals 3 | . . 3 Communications Jammed . | . . . Distress Signals . | . . . Times Spotted 20 | . 3 17 Peak Tracking Total 6 | . 2 6 Tactical Retreats . | . . . Traps | -11 -10 -9 ------- Run | Yrd Mat Mat Traps Triggered 1 | . 1 . Indirectly . | . . . Trap Hack Attempts . | . . . Triggered . | . . . Disarmed . | . . . Reprogrammed . | . . . Reused . | . . . Traps Extracted . | . . . Installed . | . . . Triggered . | . . . Machines | -11 -10 -9 ---------- Run | Yrd Mat Mat Machines Disabled 3 | . . 3 Max in Single Turn 3 | . . 3 Machines Repaired . | . . . Machines Dismantled . | . . . Machines Sabotaged . | . . . Overloaded Fab Kills . | . . . Hacking | -11 -10 -9 --------- Run | Yrd Mat Mat Machines Accessed 3 | . 3 . Terminals 3 | . 3 . Fabricators . | . . . Repair Stations . | . . . Recycling Units . | . . . Scanalyzers . | . . . Garrison Access . | . . . Total Hacks 4 | . 4 . Successful 1 | . 1 . Failed 3 | . 3 . Catastrophic . | . . . Database Lockouts . | . . . Manual 4 | . 4 . Terminals 4 | . 4 . Fabricators . | . . . Repair Stations . | . . . Recycling Units . | . . . Scanalyzers . | . . . Garrison Access . | . . . Terminal Hacks 1 | . 1 . Terminal Index 1 | . 1 . Fabricator Hacks . | . . . Repair Station Hacks . | . . . Recycling Unit Hacks . | . . . Scanalyzer . | . . . Garrison Access Hacks . | . . . Unauthorized Hacks . | . . . Terminals . | . . . Fabricators . | . . . Repair Stations . | . . . Recycling Units . | . . . Scanalyzers . | . . . Garrison Access . | . . . Data Cores Recovered . | . . . Used . | . . . Hacking Detections 3 | . 3 . Full Trace Events . | . . . Feedback Events . | . . . Feedback Blocked . | . . . Robot Schematics Acquired . | . . . Robots Built . | . . . Authchips . | . . . Time . | . . . Total Robot Build Rating . | . . . Part Schematics Acquired . | . . . Parts Built . | . . . Authchips . | . . . Time . | . . . Total Part Build Rating . | . . . Parts Repaired . | . . . Time . | . . . Parts Recycled . | . . . Recycled Matter . | . . . Retrieved Matter . | . . . Retrieved Components . | . . . Parts Scanalyzed . | . . . Part Schematics Acquired . | . . . Parts Damaged . | . . . Bothacking | -11 -10 -9 ------------ Run | Yrd Mat Mat Used RIF Installer . | . . . Robots Hacked . | . . . Non-combat . | . . . Combat . | . . . Robot Hacks Applied . | . . . Relay Couplers Released . | . . . Fabnet Peak Effective % . | . . . Robots Rewired . | . . . Allies Hacked . | . . . Hacks Repelled . | . . . Allies | -11 -10 -9 -------- Run | Yrd Mat Mat Total Allies . | . . . Largest Group . | . . . Highest-Rated Group . | . . . Highest-Rated Ally . | . . . Total Orders . | . . . Ally Attacks . | . . . Total Damage . | . . . Kills . | . . . Allies Corrupted . | . . . Allies Melted . | . . . Intel | -11 -10 -9 ------- Run | Yrd Mat Mat Robot Analysis Total . | . . . Derelict Logs Recovered . | . . . Drone Launches . | . . . Drone Recoveries . | . . . Exploration | -11 -10 -9 ------------- Run | Yrd Mat Mat Turns Passed 763 | 222 334 207 Spaces Moved 442 | 113 240 89 Core 17 | 16 . 1 Treads . | . . . Legs 425 | 97 240 88 Wheels . | . . . Hover . | . . . Flight . | . . . Fastest Speed 50 | 50 120 120 Average Speed 117 | 110 120 121 Slowest Speed 250 | 120 120 250 Overloaded Moves . | . . . Propulsion Burnouts . | . . . Robots Hopped . | . . . Cave-ins Triggered . | . . . Exploration Rate (%) 18 | 5 37 14 Regions Visited 2 Branch Regions . Pre-discovered Areas . | . . . Known Exits Taken . | . . . Unknown Exits Taken 2 | 1 1 . Scrap Searched . | . . . Spaces Dug . | . . . Terrain Destroyed 63 | . . 63 Melee . | . . . Projectile . | . . . AOE 63 | . . 63 Terrain Rammed . | . . . Walls Destroyed . | . . . Machines Disabled . | . . . Actions | -11 -10 -9 --------- Run | Yrd Mat Mat Total 541 | 151 261 129 Wait 2 | . 2 . Move 440 | 112 239 89 Hop . | . . . Pick Up 9 | 1 5 3 Fast Attach 7 | 7 . . Attach 2 | . . 2 Detach . | . . . Swap 7 | . 2 5 Drop . | . . . Fire 74 | 31 13 30 Melee . | . . . Ram . | . . . Kick . | . . . Crush . | . . . Escape Stasis . | . . . Rewire . | . . . Trap . | . . . Miscellaneous . | . . . Route ------- -11/Scrapyard -10/Materials -9/Materials History --------- Turn | Location | Event 8 | -11/Scrapyard | Discovered new exit (range 15) 223 | -11/Scrapyard | Entered Materials 318 | -10/Materials | Build established: Mutant 549 | -10/Materials | Discovered new exit (range 5) 557 | -10/Materials | Entered another Materials area 557 | -9/Materials | Evolved 2 slots: Utility x2 756 | -9/Materials | Destroyed 10 combat bots 764 | -9/Materials | Self-destructed Last Messages --------------- 00734_ Acquired 96 matter. 00735_ Destroyed Welding Torch. 00735_ S-10 Pest destroyed. 00741_ K-01 Serf collects debris. 00744_ Acquired Lgt. Assault Rifle. 00745_ R-06 Scavenger collects Lgt. Assault Rifle. 00746_ K-01 Serf collects debris. 00750_ R-06 Scavenger collects Sml. Laser. 00752_ U-05 Engineer lays Concrete. 00753_ R-06 Scavenger collects Aluminum Leg. 00754_ U-05 Engineer lays Concrete. 00755_ U-05 Engineer builds a Wall. 00756_ R-06 Scavenger collects Ion Engine. 00758_ The unstable cave ceiling collapses. 00759_ Aluminum Leg destroyed. 00759_ U-05 Engineer builds a Wall. 00760_ Aluminum Leg destroyed. 00760_ Heat Sink destroyed. 00763_ Lgt. Assault Rifle destroyed. Map ----- +----------------------------------------------------+ | ?????????????????????????????????????????????????? | | ???????????????????????????????????????????a?????? | | ?????????????????????????????????????????????????? | | ?????????????????????????????????????????????????? | | ?????????????????????????????????????????????????? | | ?????????????????????????????????????????????????? | | ?????????????????????????????????????????????????? | | ?????????????????????????????????????????????????? | | ??????????????????????????????????????????????a??? | | ?????????????????????????????????????????????????? | | ?????????????????????????????????????????????????? | | ?????????????????????????????????????????????????? | | ?????????????????????????????????????????????????? | | ?????????????????????????????????? ??????????????? | | ?????????????????????????????????" [?????????????? | | ??????????????#?????????????????? ?????????????? | | ???????????????????????######??? ??????????????? | | ???????a???????????????# = #?? #????????????? | | ???????????????????????# #? """ #????????????? | | ???????????????????????#!! ## ###??????????? | | ????????????#???????#??#!! ;;] ; ??????????? | | ???????????????????????# ;; ;##??????????? | | ????????????##?????????# ;; ; #??????????? | | ???????????????????????# ;; ##???????????? | | ???????????????######??# Y;; # "??????????? | | ?? ????????? ?## @ ;; # |"????????? | | ?# = ????##??"" """ ## Y###; ## ????????? | | ## %*?????? """ """ ?????????? | | ?? ????## """ """ == ?????????? | | ?? ?????# = ?????????? | | ??# ???#?# % * ## ?????????? | | ??# ?????# ! ! * #? # ###??????????? | | ??# #????# = ##?? #? # ??????????? | | ??# #???########### = ! #? #?? #?????????????? | | ??# #??????????#??# [ #????????#?????????????? | | ??# #???##????????# %*=##??????? ??? ??????????? | | ??# ################=* #???????????????????????? | | ??# ! #? ???#?????????????????? | | ??# = #?????????? ????????????? | | ??# * ##???#?? ???????????????? | | ??# ################ ! #?##??#?????????????????? | | ??# #????##?#?? ???# #????????a??????????????? | | ??# #??????????? ??+ ???????????#???????????? | | ### #???????#? ???? #?"???????#?????????????? | | # #??#??????????? #?"?????????????????????? | | # #?????????????? # ????#?????????????????? | | # #????????????? % # ??????????????????????? | | + #???#?????##?? ! ?"? ??????????????????? | | # #?????????????## ??????????????????????? | | # #??????????????# # ?????????????????????? | +----------------------------------------------------+ Best States ------------- Heat Dissipation 38 Energy Generation 10 Energy Capacity 250 Matter Stores 300 Matter Capacity 300 Sight Range 16 Terrain Scan Range 16 Terrain Scan Density 10 Evasion (%) 55 Item Schematics ----------------- None Robot Schematics ------------------ None Fabricated ------------ Nothing Alien Tech Used ----------------- None Achievements -------------- None Challenges ------------ None Game ------ Seed HardcellTargetingWeb Manual? 0 Play Time 00:05:39 Cumulative 36.7 hours Start 2024.10.18 @ 21:02:12 End 2024.12.20 @ 13:27:10 Sessions 3 Manual Loads 0 Difficulty Rogue Special Mode None Game No. 80 Rogue 39 Adventurer 41 Explorer 0 Win Type - Total 1 Types 1/0/0/0/0/0/0/0/0 Lore% 30 Gallery% 40 Achievement% 44 Wizard Run 0 Options --------- Layout 2 ASCII 0 Keyboard 0 Movement Arrows Keybinds 0 Fullscreen 2 Font 24/Smallcaps Map View 50x44 Zoom Use 0% Tactical HUD 1 Map Filters NONE Filters NONE Steam 1 RUN: 9952a5b9-f4d2-4519-9bb6-430eff8390cd